[Event "Early-Titled-Tuesday-Blitz-November-28-2023"]
[Site "Chess.com"]
[Date "2023.11.28"]
[Round "4"]
[White "Zapateado"]
[Black "PattyCastillo"]
[Result "1/2-1/2"]
[WhiteElo "2350"]
[BlackElo "2024"]
[TimeControl "180+1"]
[EndTime "8:40:49 PST"]
[Termination "Game drawn by repetition"]

1. c4 {[%clk 0:03:00.9]} 1... c6 {[%clk 0:02:58.6]} 2. e4 {[%clk 0:03:00.1]}
2... d5 {[%clk 0:02:57.4]} 3. exd5 {[%clk 0:03:01]} 3... cxd5 {[%clk 0:02:57]}
4. cxd5 {[%clk 0:03:01.9]} 4... Qxd5 {[%clk 0:02:55.7]} 5. Nc3 {[%clk
0:03:01.9]} 5... Qd8 {[%clk 0:02:55.8]} 6. Nf3 {[%clk 0:02:59.5]} 6... Nf6
{[%clk 0:02:54.1]} 7. Bc4 {[%clk 0:03:00]} 7... e6 {[%clk 0:02:50.7]} 8. O-O
{[%clk 0:02:58.9]} 8... Be7 {[%clk 0:02:50.5]} 9. d4 {[%clk 0:02:59.4]} 9... O-O
{[%clk 0:02:50.3]} 10. Re1 {[%clk 0:02:59.7]} 10... Nc6 {[%clk 0:02:46.8]} 11.
Bf4 {[%clk 0:02:58.1]} 11... a6 {[%clk 0:02:34.2]} 12. Rc1 {[%clk 0:02:45.5]}
12... b5 {[%clk 0:02:29.9]} 13. Bd3 {[%clk 0:02:15.2]} 13... Bb7 {[%clk
0:02:29.4]} 14. Ne4 {[%clk 0:02:10]} 14... Rc8 {[%clk 0:02:19.7]} 15. Nc5 {[%clk
0:01:34.8]} 15... Bxc5 {[%clk 0:02:06.8]} 16. dxc5 {[%clk 0:01:35.7]} 16... Nb4
{[%clk 0:01:57]} 17. Bb1 {[%clk 0:01:05.7]} 17... Qxd1 {[%clk 0:01:53.3]} 18.
Rexd1 {[%clk 0:00:36.2]} 18... Bxf3 {[%clk 0:01:50.4]} 19. gxf3 {[%clk
0:00:35.6]} 19... Nfd5 {[%clk 0:01:50.2]} 20. Bd6 {[%clk 0:00:30]} 20... Rfd8
{[%clk 0:01:50.1]} 21. a3 {[%clk 0:00:29]} 21... Nc6 {[%clk 0:01:49.7]} 22. b4
{[%clk 0:00:24.9]} 22... a5 {[%clk 0:01:40.6]} 23. bxa5 {[%clk 0:00:19.6]} 23...
Nxa5 {[%clk 0:01:40.7]} 24. Bd3 {[%clk 0:00:19.9]} 24... Nc4 {[%clk 0:01:21.7]}
25. Bxc4 {[%clk 0:00:15]} 25... bxc4 {[%clk 0:01:21.6]} 26. a4 {[%clk
0:00:09.1]} 26... c3 {[%clk 0:01:21.2]} 27. a5 {[%clk 0:00:08.1]} 27... Rd7
{[%clk 0:01:11.4]} 28. Ra1 {[%clk 0:00:06.8]} 28... Ra7 {[%clk 0:01:10.3]} 29.
Kf1 {[%clk 0:00:06.6]} 29... Ra6 {[%clk 0:01:10.1]} 30. Rdb1 {[%clk 0:00:05.6]}
30... h5 {[%clk 0:01:05.8]} 31. Rb8 {[%clk 0:00:06]} 31... Rxb8 {[%clk
0:01:01.2]} 32. Bxb8 {[%clk 0:00:06.9]} 32... Nb4 {[%clk 0:00:54.8]} 33. Be5
{[%clk 0:00:06]} 33... c2 {[%clk 0:00:42.9]} 34. Ke2 {[%clk 0:00:04]} 34... f6
{[%clk 0:00:42.4]} 35. Bc3 {[%clk 0:00:03.2]} 35... Nd5 {[%clk 0:00:37.9]} 36.
Kd3 {[%clk 0:00:03.7]} 36... Nxc3 {[%clk 0:00:30.5]} 37. Kxc3 {[%clk 0:00:04.6]}
37... Rxa5 {[%clk 0:00:30.5]} 38. Rc1 {[%clk 0:00:03.6]} 38... Rxc5+ {[%clk
0:00:30.9]} 39. Kd2 {[%clk 0:00:04.2]} 39... Rc8 {[%clk 0:00:30.5]} 40. Rxc2
{[%clk 0:00:04.2]} 40... Rxc2+ {[%clk 0:00:31]} 41. Kxc2 {[%clk 0:00:04.6]}
41... Kf7 {[%clk 0:00:31.8]} 42. Kd3 {[%clk 0:00:05.5]} 42... g5 {[%clk
0:00:31]} 43. Ke3 {[%clk 0:00:06.4]} 43... Kg6 {[%clk 0:00:31.2]} 44. f4 {[%clk
0:00:06.9]} 44... gxf4+ {[%clk 0:00:29.8]} 45. Kxf4 {[%clk 0:00:07.8]} 45... e5+
{[%clk 0:00:30.4]} 46. Ke4 {[%clk 0:00:07.8]} 46... Kg5 {[%clk 0:00:30.1]} 47.
Kf3 {[%clk 0:00:08]} 47... h4 {[%clk 0:00:29.7]} 48. h3 {[%clk 0:00:07.6]} 48...
Kf5 {[%clk 0:00:29.1]} 49. Ke3 {[%clk 0:00:08]} 49... Ke6 {[%clk 0:00:27.5]} 50.
Kf3 {[%clk 0:00:08]} 50... Kd5 {[%clk 0:00:27.9]} 51. Kg4 {[%clk 0:00:08.1]}
51... Ke4 {[%clk 0:00:25.8]} 52. Kxh4 {[%clk 0:00:07.1]} 52... Kf3 {[%clk
0:00:26.2]} 53. Kh5 {[%clk 0:00:07.3]} 53... Kxf2 {[%clk 0:00:26.6]} 54. Kg6
{[%clk 0:00:07.7]} 54... e4 {[%clk 0:00:27.1]} 55. h4 {[%clk 0:00:08.1]} 55...
e3 {[%clk 0:00:27.6]} 56. h5 {[%clk 0:00:08.6]} 56... e2 {[%clk 0:00:28.1]} 57.
h6 {[%clk 0:00:09.5]} 57... e1=Q {[%clk 0:00:28.4]} 58. h7 {[%clk 0:00:09.3]}
58... Qg1+ {[%clk 0:00:28.6]} 59. Kxf6 {[%clk 0:00:09]} 59... Qh2 {[%clk
0:00:28.1]} 60. Kg7 {[%clk 0:00:09.3]} 60... Qg3+ {[%clk 0:00:28.1]} 61. Kf7
{[%clk 0:00:09.6]} 61... Qh4 {[%clk 0:00:27.1]} 62. Kg8 {[%clk 0:00:09.5]} 62...
Qg5+ {[%clk 0:00:27.3]} 63. Kh8 {[%clk 0:00:10]} 63... Qf6+ {[%clk 0:00:24.1]}
64. Kg8 {[%clk 0:00:10.1]} 64... Qg6+ {[%clk 0:00:23.7]} 65. Kh8 {[%clk
0:00:09.8]} 65... Qe8+ {[%clk 0:00:15.5]} 66. Kg7 {[%clk 0:00:10.1]} 66... Qe7+
{[%clk 0:00:14.4]} 67. Kg8 {[%clk 0:00:10.4]} 67... Qe6+ {[%clk 0:00:12.4]} 68.
Kg7 {[%clk 0:00:10.5]} 68... Qe5+ {[%clk 0:00:10.5]} 69. Kg8 {[%clk 0:00:10.3]}
69... Qg5+ {[%clk 0:00:09.8]} 70. Kh8 {[%clk 0:00:10.2]} 70... Qd8+ {[%clk
0:00:09.2]} 71. Kg7 {[%clk 0:00:10.1]} 71... Qe7+ {[%clk 0:00:08.7]} 72. Kg8
{[%clk 0:00:10.1]} 72... Qe8+ {[%clk 0:00:09]} 73. Kg7 {[%clk 0:00:10.4]} 73...
Qe7+ {[%clk 0:00:07.6]} 1/2-1/2

[Event "Early-Titled-Tuesday-Blitz-November-28-2023"]
[Site "Chess.com"]
[Date "2023.11.28"]
[Round "4"]
[White "KononenkoD"]
[Black "Iball95"]
[Result "0-1"]
[WhiteElo "2508"]
[BlackElo "2846"]
[TimeControl "180+1"]
[EndTime "8:40:55 PST"]
[Termination "Iball95 won by checkmate"]

1. d4 {[%clk 0:02:47.9]} 1... d5 {[%clk 0:02:59.5]} 2. c4 {[%clk 0:02:47.5]}
2... e6 {[%clk 0:03:00]} 3. Nc3 {[%clk 0:02:45.7]} 3... c5 {[%clk 0:03:00]} 4.
Nf3 {[%clk 0:02:42.8]} 4... cxd4 {[%clk 0:02:59.8]} 5. Nxd4 {[%clk 0:02:40.5]}
5... e5 {[%clk 0:03:00.2]} 6. Nc2 {[%clk 0:02:38.2]} 6... d4 {[%clk 0:03:00]} 7.
Nd5 {[%clk 0:02:37.5]} 7... Ne7 {[%clk 0:02:52.3]} 8. e3 {[%clk 0:02:30.5]} 8...
Nxd5 {[%clk 0:02:51.1]} 9. cxd5 {[%clk 0:02:29.8]} 9... Qxd5 {[%clk 0:02:51.5]}
10. exd4 {[%clk 0:02:29.7]} 10... exd4 {[%clk 0:02:41.3]} 11. Qxd4 {[%clk
0:02:27]} 11... Qxd4 {[%clk 0:02:38.2]} 12. Nxd4 {[%clk 0:02:26.7]} 12... Bb4+
{[%clk 0:02:38.9]} 13. Bd2 {[%clk 0:02:24.7]} 13... Bxd2+ {[%clk 0:02:39.4]} 14.
Kxd2 {[%clk 0:02:25.6]} 14... O-O {[%clk 0:02:40.3]} 15. Bd3 {[%clk 0:02:16.5]}
15... Rd8 {[%clk 0:02:38.8]} 16. Ke3 {[%clk 0:02:11.3]} 16... Nd7 {[%clk
0:02:37.9]} 17. Rhd1 {[%clk 0:02:09.5]} 17... Ne5 {[%clk 0:02:35.5]} 18. f3
{[%clk 0:02:04.6]} 18... Bd7 {[%clk 0:02:28.9]} 19. Be2 {[%clk 0:01:55.2]} 19...
Kf8 {[%clk 0:02:25.7]} 20. Rac1 {[%clk 0:01:53.6]} 20... Rac8 {[%clk 0:02:22.5]}
21. Nb3 {[%clk 0:01:45.8]} 21... Ke7 {[%clk 0:02:14.8]} 22. Nc5 {[%clk
0:01:42.7]} 22... Bc6 {[%clk 0:02:13.9]} 23. b4 {[%clk 0:01:38.5]} 23... g5
{[%clk 0:02:04]} 24. b5 {[%clk 0:01:14.5]} 24... Rxd1 {[%clk 0:02:03.2]} 25.
Rxd1 {[%clk 0:01:10.9]} 25... Bxb5 {[%clk 0:02:03.4]} 26. Nxb7 {[%clk
0:01:06.4]} 26... Rc3+ {[%clk 0:01:46]} 27. Kd2 {[%clk 0:00:52.4]} 27... Bxe2
{[%clk 0:01:35.5]} 28. Kxe2 {[%clk 0:00:38.6]} 28... Nc4 {[%clk 0:01:12.7]} 29.
Nc5 {[%clk 0:00:20.3]} 29... Ra3 {[%clk 0:01:12.4]} 30. Rd7+ {[%clk 0:00:17.1]}
30... Ke8 {[%clk 0:01:09.6]} 31. Rc7 {[%clk 0:00:16.8]} 31... Rxa2+ {[%clk
0:01:09.6]} 32. Kd3 {[%clk 0:00:17.2]} 32... Nd6 {[%clk 0:01:01.4]} 33. g4
{[%clk 0:00:15.5]} 33... a5 {[%clk 0:00:58.9]} 34. Ra7 {[%clk 0:00:14.8]} 34...
Ra3+ {[%clk 0:00:45.1]} 35. Ke2 {[%clk 0:00:14.6]} 35... Nb5 {[%clk 0:00:41.1]}
36. Ra8+ {[%clk 0:00:10]} 36... Ke7 {[%clk 0:00:41.3]} 37. Nb7 {[%clk
0:00:08.1]} 37... Nd4+ {[%clk 0:00:39]} 38. Kd1 {[%clk 0:00:08.4]} 38... Nxf3
{[%clk 0:00:35.4]} 39. Nxa5 {[%clk 0:00:07.1]} 39... Kf6 {[%clk 0:00:31.2]} 40.
Ra6+ {[%clk 0:00:06.4]} 40... Kg7 {[%clk 0:00:31.2]} 41. h3 {[%clk 0:00:05.8]}
41... Ng1 {[%clk 0:00:31.2]} 42. Ra7 {[%clk 0:00:04.8]} 42... Nxh3 {[%clk
0:00:30.9]} 43. Ke2 {[%clk 0:00:04.6]} 43... Nf4+ {[%clk 0:00:29]} 44. Kf2
{[%clk 0:00:04.8]} 44... Nd3+ {[%clk 0:00:28.9]} 45. Kg2 {[%clk 0:00:04.6]}
45... Ne5 {[%clk 0:00:25.1]} 46. Nc6 {[%clk 0:00:03.2]} 46... Rxa7 {[%clk
0:00:25.1]} 47. Nxa7 {[%clk 0:00:04.1]} 47... Nxg4 {[%clk 0:00:25.5]} 48. Nc6
{[%clk 0:00:04.9]} 48... h5 {[%clk 0:00:24.9]} 49. Kg3 {[%clk 0:00:04.2]} 49...
Ne3 {[%clk 0:00:23.6]} 50. Kf3 {[%clk 0:00:03.9]} 50... Nf5 {[%clk 0:00:23.5]}
51. Ke4 {[%clk 0:00:03.7]} 51... Nh6 {[%clk 0:00:19.5]} 52. Ne5 {[%clk
0:00:02.8]} 52... f6 {[%clk 0:00:19.7]} 53. Nd7 {[%clk 0:00:02.3]} 53... Nf7
{[%clk 0:00:18.7]} 54. Nc5 {[%clk 0:00:03.2]} 54... Kg6 {[%clk 0:00:18.4]} 55.
Ne6 {[%clk 0:00:03.1]} 55... f5+ {[%clk 0:00:18.7]} 56. Kf3 {[%clk 0:00:04]}
56... h4 {[%clk 0:00:19.1]} 57. Nf8+ {[%clk 0:00:03.8]} 57... Kh5 {[%clk
0:00:18.8]} 58. Nd7 {[%clk 0:00:04.7]} 58... Kg6 {[%clk 0:00:15.8]} 59. Kg2
{[%clk 0:00:05.6]} 59... g4 {[%clk 0:00:15.3]} 60. Nf8+ {[%clk 0:00:05.4]} 60...
Kf6 {[%clk 0:00:14.2]} 61. Nd7+ {[%clk 0:00:06.3]} 61... Kg5 {[%clk 0:00:13.9]}
62. Nc5 {[%clk 0:00:07.2]} 62... h3+ {[%clk 0:00:13.4]} 63. Kh2 {[%clk
0:00:06.7]} 63... Kf6 {[%clk 0:00:14]} 64. Nd3 {[%clk 0:00:06.8]} 64... Ng5
{[%clk 0:00:14.2]} 65. Nf2 {[%clk 0:00:07.7]} 65... Ne4 {[%clk 0:00:13]} 66. Nd3
{[%clk 0:00:07.6]} 66... Kg5 {[%clk 0:00:13.2]} 67. Ne5 {[%clk 0:00:07.6]} 67...
f4 {[%clk 0:00:12.7]} 68. Kg1 {[%clk 0:00:07.9]} 68... g3 {[%clk 0:00:11.7]} 69.
Nd3 {[%clk 0:00:07.5]} 69... Kg4 {[%clk 0:00:11.9]} 70. Kh1 {[%clk 0:00:06]}
70... Nf2+ {[%clk 0:00:11.2]} 71. Nxf2+ {[%clk 0:00:06.1]} 71... gxf2 {[%clk
0:00:11.7]} 72. Kh2 {[%clk 0:00:07]} 72... f3 {[%clk 0:00:11.9]} 73. Kh1 {[%clk
0:00:06.9]} 73... f1=Q+ {[%clk 0:00:12.5]} 74. Kh2 {[%clk 0:00:07.8]} 74... Qg2#
{[%clk 0:00:13.4]} 0-1

[Event "Early-Titled-Tuesday-Blitz-November-28-2023"]
[Site "Chess.com"]
[Date "2023.11.28"]
[Round "4"]
[White "gpsji27"]
[Black "Aslanov_Umid"]
[Result "0-1"]
[WhiteElo "2327"]
[BlackElo "2515"]
[TimeControl "180+1"]
[EndTime "8:41:00 PST"]
[Termination "Aslanov_Umid won by checkmate"]

1. d4 {[%clk 0:03:00.9]} 1... d5 {[%clk 0:02:59]} 2. Nf3 {[%clk 0:02:58.9]} 2...
Nf6 {[%clk 0:02:58.9]} 3. c4 {[%clk 0:02:58.6]} 3... e6 {[%clk 0:02:58.8]} 4.
Nc3 {[%clk 0:02:58.8]} 4... c6 {[%clk 0:02:57.9]} 5. Bg5 {[%clk 0:02:58.7]} 5...
dxc4 {[%clk 0:02:56.3]} 6. e4 {[%clk 0:02:57.8]} 6... b5 {[%clk 0:02:51.8]} 7.
e5 {[%clk 0:02:58]} 7... h6 {[%clk 0:02:52.4]} 8. Bh4 {[%clk 0:02:58.3]} 8... g5
{[%clk 0:02:53.2]} 9. Nxg5 {[%clk 0:02:58.9]} 9... hxg5 {[%clk 0:02:54.1]} 10.
Bxg5 {[%clk 0:02:59.8]} 10... Be7 {[%clk 0:02:54.9]} 11. exf6 {[%clk 0:02:58.5]}
11... Bxf6 {[%clk 0:02:55.8]} 12. Bxf6 {[%clk 0:02:55.6]} 12... Qxf6 {[%clk
0:02:56.7]} 13. g3 {[%clk 0:02:53.2]} 13... Bb7 {[%clk 0:02:42.4]} 14. Bg2
{[%clk 0:02:51.8]} 14... Nd7 {[%clk 0:02:04.1]} 15. Nxb5 {[%clk 0:02:42.7]}
15... cxb5 {[%clk 0:02:01.2]} 16. Bxb7 {[%clk 0:02:41.9]} 16... Rd8 {[%clk
0:02:02.1]} 17. Bc6 {[%clk 0:02:32.1]} 17... Qf5 {[%clk 0:01:36.5]} 18. Qd2
{[%clk 0:02:20.9]} 18... Rc8 {[%clk 0:01:12.8]} 19. Bxd7+ {[%clk 0:02:14.7]}
19... Kxd7 {[%clk 0:01:13.7]} 20. O-O-O {[%clk 0:02:14.1]} 20... c3 {[%clk
0:01:11]} 21. bxc3 {[%clk 0:02:14]} 21... b4 {[%clk 0:01:11.6]} 22. Qe2 {[%clk
0:01:47.7]} 22... Qa5 {[%clk 0:00:54.1]} 23. c4 {[%clk 0:01:42.6]} 23... Rxc4+
{[%clk 0:00:26.7]} 24. Qxc4 {[%clk 0:01:40.8]} 24... Rc8 {[%clk 0:00:27.4]} 25.
Qxc8+ {[%clk 0:01:38]} 25... Kxc8 {[%clk 0:00:28.3]} 26. Kb1 {[%clk 0:01:38.8]}
26... Qf5+ {[%clk 0:00:25.1]} 27. Ka1 {[%clk 0:01:36.7]} 27... Qxf2 {[%clk
0:00:25.5]} 28. d5 {[%clk 0:01:32.7]} 28... Qf6+ {[%clk 0:00:20.7]} 29. Kb1
{[%clk 0:01:32.4]} 29... Qf5+ {[%clk 0:00:21.4]} 30. Kb2 {[%clk 0:01:29.5]}
30... Qe5+ {[%clk 0:00:21.4]} 31. Kb1 {[%clk 0:01:28.1]} 31... Qe4+ {[%clk
0:00:20.5]} 32. Kb2 {[%clk 0:01:27.7]} 32... exd5 {[%clk 0:00:18.6]} 33. Rc1+
{[%clk 0:01:25.8]} 33... Kd7 {[%clk 0:00:15.8]} 34. Rhe1 {[%clk 0:01:26]} 34...
Qd4+ {[%clk 0:00:16.4]} 35. Kb1 {[%clk 0:01:26.2]} 35... Qd3+ {[%clk 0:00:15.5]}
36. Kb2 {[%clk 0:01:26.1]} 36... a5 {[%clk 0:00:15.9]} 37. Red1 {[%clk
0:01:14.6]} 37... Qe2+ {[%clk 0:00:15.9]} 38. Kb1 {[%clk 0:01:15.1]} 38... Kd6
{[%clk 0:00:15.8]} 39. Rd4 {[%clk 0:01:11.3]} 39... Qxh2 {[%clk 0:00:09.1]} 40.
Rcd1 {[%clk 0:01:09.9]} 40... Qh7+ {[%clk 0:00:09.3]} 41. Kb2 {[%clk 0:01:03.5]}
41... Qg7 {[%clk 0:00:09.7]} 42. Kb3 {[%clk 0:01:03.7]} 42... Qxg3+ {[%clk
0:00:09.1]} 43. R1d3 {[%clk 0:01:02.3]} 43... Qg2 {[%clk 0:00:09.3]} 44. a3
{[%clk 0:00:59.9]} 44... Kc5 {[%clk 0:00:06.2]} 45. axb4+ {[%clk 0:00:58.1]}
45... axb4 {[%clk 0:00:07.1]} 46. Rxb4 {[%clk 0:00:53.3]} 46... Qf1 {[%clk
0:00:07.7]} 47. Rc3+ {[%clk 0:00:51.6]} 47... Kd6 {[%clk 0:00:08.3]} 48. Rd4
{[%clk 0:00:50]} 48... Ke5 {[%clk 0:00:08]} 49. Rcd3 {[%clk 0:00:50.1]} 49...
Qb1+ {[%clk 0:00:07.2]} 50. Kc3 {[%clk 0:00:50.1]} 50... Qb5 {[%clk 0:00:07.5]}
51. Kd2 {[%clk 0:00:48.3]} 51... Qc5 {[%clk 0:00:07.1]} 52. Rg4 {[%clk
0:00:13.2]} 52... Qf2+ {[%clk 0:00:05.6]} 53. Kd1 {[%clk 0:00:11]} 53... Qf1+
{[%clk 0:00:05.3]} 54. Kd2 {[%clk 0:00:11.4]} 54... Qf2+ {[%clk 0:00:06]} 55.
Kd1 {[%clk 0:00:11.9]} 55... f5 {[%clk 0:00:06.8]} 56. Rg8 {[%clk 0:00:09.2]}
56... Qf1+ {[%clk 0:00:07.2]} 57. Kd2 {[%clk 0:00:09.4]} 57... Qf4+ {[%clk
0:00:08]} 58. Re3+ {[%clk 0:00:09.1]} 58... Kd4 {[%clk 0:00:07.8]} 59. Re8
{[%clk 0:00:09.9]} 59... Qf2+ {[%clk 0:00:07.1]} 60. Re2 {[%clk 0:00:10.3]}
60... Qf4+ {[%clk 0:00:07.6]} 61. Ke1 {[%clk 0:00:09.8]} 61... Qh4+ {[%clk
0:00:07.4]} 62. Kd2 {[%clk 0:00:09.7]} 62... Qg5+ {[%clk 0:00:07.5]} 63. Ke1
{[%clk 0:00:09.5]} 63... Qg1+ {[%clk 0:00:07.8]} 64. Kd2 {[%clk 0:00:09.3]}
64... f4 {[%clk 0:00:08.7]} 65. Rf8 {[%clk 0:00:08.7]} 65... Qg5 {[%clk
0:00:08.9]} 66. Rf2 {[%clk 0:00:08.1]} 66... f3+ {[%clk 0:00:09.3]} 67. Kc2
{[%clk 0:00:06.3]} 67... Qg6+ {[%clk 0:00:08.9]} 68. Kd2 {[%clk 0:00:06.4]}
68... Qh6+ {[%clk 0:00:09.4]} 69. Kc2 {[%clk 0:00:06.3]} 69... Qxf8 {[%clk
0:00:10]} 70. Rd2+ {[%clk 0:00:06]} 70... Ke3 {[%clk 0:00:10.6]} 71. Rd3+ {[%clk
0:00:06.3]} 71... Ke4 {[%clk 0:00:11.3]} 72. Rd2 {[%clk 0:00:06.9]} 72... f2
{[%clk 0:00:12]} 73. Rd1 {[%clk 0:00:07.6]} 73... f1=Q {[%clk 0:00:12.3]} 74.
Re1+ {[%clk 0:00:06.7]} 74... Qxe1 {[%clk 0:00:11.8]} 75. Kb3 {[%clk 0:00:07.6]}
75... Qfb4+ {[%clk 0:00:12.3]} 76. Ka2 {[%clk 0:00:08.2]} 76... Qed2+ {[%clk
0:00:12.5]} 77. Ka1 {[%clk 0:00:08.1]} 77... Qdb2# {[%clk 0:00:13.4]} 0-1

[Event "Early-Titled-Tuesday-Blitz-November-28-2023"]
[Site "Chess.com"]
[Date "2023.11.28"]
[Round "4"]
[White "krucki03"]
[Black "Boundless_Strike"]
[Result "1/2-1/2"]
[WhiteElo "2483"]
[BlackElo "2673"]
[TimeControl "180+1"]
[EndTime "8:41:02 PST"]
[Termination "Game drawn by repetition"]

1. e4 {[%clk 0:02:58.7]} 1... d6 {[%clk 0:02:59.7]} 2. d4 {[%clk 0:02:58]} 2...
e5 {[%clk 0:03:00.2]} 3. Nf3 {[%clk 0:02:54.7]} 3... Bg4 {[%clk 0:03:00.8]} 4.
dxe5 {[%clk 0:02:48.7]} 4... Nc6 {[%clk 0:03:00.8]} 5. Bb5 {[%clk 0:02:45.6]}
5... Qd7 {[%clk 0:03:00.4]} 6. h3 {[%clk 0:02:36.7]} 6... Bh5 {[%clk 0:02:59.6]}
7. Bf4 {[%clk 0:02:27.3]} 7... O-O-O {[%clk 0:02:58.9]} 8. Nbd2 {[%clk
0:02:19.9]} 8... a6 {[%clk 0:02:42]} 9. Ba4 {[%clk 0:02:04.3]} 9... Qe8 {[%clk
0:02:18.8]} 10. Qe2 {[%clk 0:01:58]} 10... g5 {[%clk 0:01:00.5]} 11. Bxg5 {[%clk
0:01:42.3]} 11... Be7 {[%clk 0:01:01]} 12. Bxe7 {[%clk 0:01:42]} 12... Ngxe7
{[%clk 0:01:01.9]} 13. exd6 {[%clk 0:01:38.8]} 13... Rxd6 {[%clk 0:01:02.8]} 14.
O-O-O {[%clk 0:01:39.3]} 14... Bg6 {[%clk 0:00:45.3]} 15. Bxc6 {[%clk
0:01:30.9]} 15... Nxc6 {[%clk 0:00:44.6]} 16. Rhe1 {[%clk 0:01:29.7]} 16... Qe6
{[%clk 0:00:40.9]} 17. Kb1 {[%clk 0:01:25.7]} 17... Rhd8 {[%clk 0:00:40.2]} 18.
Nb3 {[%clk 0:01:18.2]} 18... Rxd1+ {[%clk 0:00:27.5]} 19. Rxd1 {[%clk
0:01:19.1]} 19... Rxd1+ {[%clk 0:00:28.1]} 20. Qxd1 {[%clk 0:01:20]} 20... Qxe4
{[%clk 0:00:28.7]} 21. a3 {[%clk 0:01:12.1]} 21... Qa4 {[%clk 0:00:25.1]} 22.
Nc5 {[%clk 0:01:08]} 22... Qc4 {[%clk 0:00:20.6]} 23. Nd3 {[%clk 0:00:56.1]}
23... f6 {[%clk 0:00:18.7]} 24. b3 {[%clk 0:00:52]} 24... Qd5 {[%clk 0:00:18]}
25. Qd2 {[%clk 0:00:47.1]} 25... Kb8 {[%clk 0:00:16.5]} 26. Qc3 {[%clk
0:00:40.3]} 26... a5 {[%clk 0:00:13.4]} 27. Kb2 {[%clk 0:00:31.5]} 27... a4
{[%clk 0:00:13]} 28. Nf4 {[%clk 0:00:30.9]} 28... Qd6 {[%clk 0:00:10.7]} 29.
Nxg6 {[%clk 0:00:30.8]} 29... hxg6 {[%clk 0:00:11.6]} 30. Qd3 {[%clk 0:00:27.7]}
30... Qe6 {[%clk 0:00:06.6]} 31. Qxg6 {[%clk 0:00:23.8]} 31... axb3 {[%clk
0:00:04.1]} 32. cxb3 {[%clk 0:00:24.7]} 32... Ne5 {[%clk 0:00:04.2]} 33. Qc2
{[%clk 0:00:18.2]} 33... Nxf3 {[%clk 0:00:03.7]} 34. gxf3 {[%clk 0:00:19.1]}
34... Qe5+ {[%clk 0:00:04.4]} 35. Ka2 {[%clk 0:00:19.8]} 35... Qf4 {[%clk
0:00:04.4]} 36. Qd3 {[%clk 0:00:17.9]} 36... b6 {[%clk 0:00:02.7]} 37. Qe3
{[%clk 0:00:17.6]} 37... Qf5 {[%clk 0:00:02.8]} 38. Qe8+ {[%clk 0:00:12.3]}
38... Ka7 {[%clk 0:00:02.8]} 39. Qc6 {[%clk 0:00:12.5]} 39... Kb8 {[%clk
0:00:01.6]} 40. Qe8+ {[%clk 0:00:12.7]} 40... Ka7 {[%clk 0:00:01.8]} 41. Qe4
{[%clk 0:00:12.6]} 41... Qxh3 {[%clk 0:00:01.7]} 42. a4 {[%clk 0:00:13]} 42...
Kb8 {[%clk 0:00:02]} 43. Qe8+ {[%clk 0:00:09.5]} 43... Ka7 {[%clk 0:00:02]} 44.
Qe4 {[%clk 0:00:05.3]} 44... Qf1 {[%clk 0:00:01.7]} 45. Qe3 {[%clk 0:00:04.7]}
45... Qd1 {[%clk 0:00:02.1]} 46. Kb2 {[%clk 0:00:04.2]} 46... Qd5 {[%clk
0:00:02.1]} 47. Qc3 {[%clk 0:00:04]} 47... Kb8 {[%clk 0:00:01.9]} 48. Qxf6
{[%clk 0:00:03.4]} 48... Qd2+ {[%clk 0:00:02.6]} 49. Ka3 {[%clk 0:00:03.7]}
49... Qxf2 {[%clk 0:00:03]} 50. Qc3 {[%clk 0:00:02.6]} 50... Kb7 {[%clk
0:00:03]} 51. b4 {[%clk 0:00:02.8]} 51... Qg3 {[%clk 0:00:03]} 52. b5 {[%clk
0:00:03.1]} 52... Qd6+ {[%clk 0:00:03.7]} 53. Kb3 {[%clk 0:00:03.3]} 53... Qe6+
{[%clk 0:00:04.4]} 54. Qc4 {[%clk 0:00:03.3]} 54... Qe3+ {[%clk 0:00:04.9]} 55.
Qc3 {[%clk 0:00:03.9]} 55... Qe6+ {[%clk 0:00:05.3]} 56. Kb2 {[%clk 0:00:03.5]}
56... Qe2+ {[%clk 0:00:05.5]} 57. Kc1 {[%clk 0:00:03.8]} 57... Qf1+ {[%clk
0:00:05.8]} 58. Kd2 {[%clk 0:00:03.9]} 58... Qf2+ {[%clk 0:00:06.4]} 59. Kd1
{[%clk 0:00:03.4]} 59... Qf1+ {[%clk 0:00:06.8]} 60. Kc2 {[%clk 0:00:03.5]}
60... Qe2+ {[%clk 0:00:07.2]} 61. Kb1 {[%clk 0:00:03.6]} 61... Qd1+ {[%clk
0:00:07.2]} 62. Kb2 {[%clk 0:00:03.8]} 62... Qxa4 {[%clk 0:00:07.9]} 63. Qc6+
{[%clk 0:00:03.9]} 63... Kb8 {[%clk 0:00:08.5]} 64. Kc3 {[%clk 0:00:04]} 64...
Qa3+ {[%clk 0:00:08.1]} 65. Kd4 {[%clk 0:00:04.3]} 65... Qb2+ {[%clk 0:00:08.2]}
66. Ke4 {[%clk 0:00:04.3]} 66... Qg7 {[%clk 0:00:08.7]} 67. f4 {[%clk 0:00:04]}
67... Qg2+ {[%clk 0:00:07.5]} 68. Ke5 {[%clk 0:00:03.9]} 68... Qg7+ {[%clk
0:00:06.3]} 69. Qf6 {[%clk 0:00:02.1]} 69... Qg3 {[%clk 0:00:06.6]} 70. Qc6
{[%clk 0:00:02.1]} 70... Qe3+ {[%clk 0:00:06.4]} 71. Kf5 {[%clk 0:00:02.4]}
71... Qg3 {[%clk 0:00:06.3]} 72. Ke4 {[%clk 0:00:01.2]} 72... Qg2+ {[%clk
0:00:06.3]} 73. Ke3 {[%clk 0:00:01.6]} 73... Qg3+ {[%clk 0:00:06.5]} 74. Ke4
{[%clk 0:00:01.5]} 74... Qg2+ {[%clk 0:00:06.6]} 1/2-1/2